bitfinex/quotes_SOLUSD_20250805
["timestamp","ask_amount","ask_price","bid_price","bid_amount"]
[1754397164852,10.13812336,168.68,168.65,44.16]
[1754397165053,10.13812336,168.67,168.65,44.16]
[1754397165447,148.2,168.66,168.65,44.16]
[1754397165752,158.33812336,168.66,168.65,44.16]
[1754397165950,164.98721146,168.66,168.64,0.06]
[1754397166150,159.05812336,168.65,168.64,0.06]
[1754397166469,10.13812336,168.57,168.52,0.48]
[1754397166639,10.13812336,168.57,168.53,44.14]
[1754397167183,10.13812336,168.57,168.53,44.62]
[1754397167346,148.2,168.65,168.54,10.61812336]
[1754397167347,10.13812336,168.59,168.54,10.61812336]
[1754397167763,0.72,168.62,168.55,0.48]
[1754397168075,10.13812336,168.6,168.56,5.9326056]
[1754397168365,10.13812336,168.6,168.57,44.14]
[1754397168678,10.13812336,168.62,168.58,0.48]
[1754397169647,10.13812336,168.62,168.57,54.27812336]
[1754397169845,10.13812336,168.62,168.58,5.93190176]
[1754397170346,5.92986884,168.64,168.58,5.93190176]
[1754397170551,10.13812336,168.62,168.58,5.93190176]
[1754397171261,148.2,168.61,168.58,16.07002512]
[1754397171461,148.2,168.61,168.6,10.13812336]
[1754397171662,148.2,168.61,168.6,0.48]
[1754397171852,148.2,168.61,168.6,10.61812336]
[1754397172451,148.2,168.61,168.6,10.13812336]
[1754397173088,148.2,168.61,168.59,10.13812336]
[1754397173271,148.2,168.61,168.6,10.13812336]
[1754397173464,148.2,168.61,168.59,10.13812336]
[1754397174367,148.2,168.61,168.58,16.07002512]
[1754397174768,148.92,168.61,168.57,50.07214701]
[1754397174948,148.2,168.61,168.58,0.48]
[1754397175151,148.2,168.61,168.58,10.13812336]
[1754397175351,148.2,168.61,168.58,16.06973184]
[1754397176070,148.92,168.61,168.58,5.93160848]
[1754397176269,0.72,168.6,168.57,60.21027083]
[1754397176471,148.2,168.59,168.57,60.21027083]
[1754397176884,148.2,168.59,168.57,54.27812336]
[1754397177380,148.2,168.59,168.57,44.14]
[1754397177674,148.2,168.59,168.58,44.14]
[1754397178185,148.2,168.59,168.58,54.27812336]
[1754397178884,148.87,168.59,168.58,44.14]
[1754397180060,159.00812336,168.59,168.58,44.14]
[1754397180486,164.93969658,168.59,168.56,44.14]
[1754397180781,0.67,168.58,168.56,44.14]
[1754397180966,148.2,168.59,168.56,44.14]
[1754397181165,148.87,168.59,168.56,44.14]
[1754397181370,148.2,168.59,168.56,54.27812336]
[1754397181880,148.2,168.59,168.56,44.14]
[1754397182056,0.67,168.58,168.56,44.14]
[1754397182764,0.67,168.64,168.57,10.61812336]
[1754397182961,148.2,168.66,168.61,10.13812336]
[1754397182962,158.33812336,168.66,168.61,10.13812336]
[1754397183183,10.13812336,168.63,168.62,44.12]
[1754397183563,10.80812336,168.63,168.62,44.12]
[1754397183979,0.67,168.65,168.62,44.12]
[1754397184485,10.13812336,168.67,168.62,60.18857765]
[1754397184682,10.13812336,168.71,168.66,10.13812336]
[1754397184986,10.13812336,168.67,168.62,10.13812336]
[1754397185174,0.67,168.66,168.63,44.12]
[1754397185378,0.67,168.65,168.63,44.12]
[1754397186166,0.67,168.64,168.63,44.12]
[1754397186857,10.80812336,168.64,168.63,44.12]
[1754397187084,10.80812336,168.64,168.57,10.13812336]
[1754397187281,10.13812336,168.62,168.58,44.12]
[1754397187453,0.67,168.61,168.58,44.12]
[1754397187659,10.80812336,168.61,168.58,44.12]
[1754397188270,0.67,168.65,168.59,10.13812336]
[1754397188586,10.13812336,168.61,168.58,44.12]
[1754397188770,10.13812336,168.61,168.59,44.1]
[1754397188972,10.80812336,168.61,168.59,44.1]
[1754397189692,6.60008408,168.64,168.59,44.1]
[1754397189980,10.13812336,168.62,168.59,44.1]
[1754397190164,10.80812336,168.62,168.59,44.1]
[1754397190561,10.13812336,168.62,168.59,44.1]
[1754397190985,10.80812336,168.62,168.59,44.1]
[1754397191163,148.2,168.61,168.59,44.1]
[1754397191358,148.2,168.6,168.57,16.07024352]
[1754397191684,148.2,168.59,168.58,44.1]
[1754397192664,148.2,168.59,168.58,50.03190176]
[1754397193388,148.2,168.59,168.58,44.1]
[1754397193586,148.87,168.59,168.58,44.1]
[1754397193886,148.2,168.59,168.58,44.1]
[1754397194489,10.13812336,168.6,168.58,44.1]
[1754397194670,16.06947048,168.6,168.58,44.1]
[1754397195192,10.80812336,168.59,168.58,44.1]
[1754397195798,16.73967327,168.59,168.58,44.1]
[1754397195982,10.13812336,168.6,168.58,44.1]
[1754397196364,10.80812336,168.59,168.58,44.1]
[1754397197492,16.73967327,168.59,168.58,44.1]
[1754397197692,10.80812336,168.59,168.58,44.1]
[1754397197989,0.67,168.59,168.58,44.1]
[1754397198191,10.80812336,168.59,168.58,44.1]
[1754397198892,0.67,168.59,168.58,44.1]
[1754397199188,10.13812336,168.6,168.58,44.1]
[1754397199994,16.73940435,168.6,168.58,44.1]
[1754397200380,10.80812336,168.59,168.58,44.1]
[1754397200576,0.67,168.59,168.58,44.1]
[1754397200780,10.13812336,168.6,168.58,44.1]
[1754397201093,16.73937753,168.6,168.58,44.1]
[1754397201281,10.13812336,168.59,168.58,44.1]
[1754397201883,10.80812336,168.59,168.58,44.1]
[1754397202484,16.73967327,168.59,168.58,44.1]
[1754397203122,16.73967327,168.59,168.56,44.08]
[1754397203298,10.13812336,168.57,168.56,44.08]
[1754397203474,10.80812336,168.57,168.56,44.08]
[1754397203669,0.67,168.57,168.56,44.08]
[1754397203982,10.13812336,168.57,168.56,44.08]
[1754397204383,10.80812336,168.57,168.56,44.08]
[1754397204879,10.13812336,168.57,168.56,44.08]
[1754397205486,0.67,168.62,168.56,44.08]
[1754397205682,0.67,168.62,168.57,10.13812336]
[1754397205875,10.13812336,168.62,168.57,10.61812336]
[1754397206497,6.59989774,168.64,168.58,10.61812336]
[1754397206799,4.27456927,168.63,168.59,44.06]
[1754397207304,4.27456927,168.63,168.62,10.13812336]
[1754397207473,10.13812336,168.68,168.62,10.13812336]
[1754397207474,10.13812336,168.7,168.62,54.19812336]
[1754397207674,3.09792351,168.73,168.67,16.06679201]
[1754397207891,3.09792351,168.73,168.68,54.19812336]
[1754397207892,4.27961211,168.72,168.68,54.19812336]
[1754397208121,4.27961211,168.71,168.68,54.19812336]
[1754397208381,4.27961211,168.7,168.68,54.19812336]
[1754397208584,23.77763457,168.74,168.68,54.67812336]
[1754397208902,4.281205,168.73,168.7,10.13812336]
[1754397209089,14.41932836,168.73,168.71,44.06]
[1754397209297,10.81812336,168.73,168.71,44.06]
[1754397210001,16.74479366,168.73,168.71,44.06]
[1754397210297,10.13812336,168.73,168.71,44.06]
[1754397210876,0.1,168.77,168.72,10.61812336]
[1754397211179,0.1,168.77,168.74,10.13812336]
[1754397211399,0.1,168.77,168.75,44.04]
[1754397211894,0.1,168.77,168.75,60.58404928]
[1754397214017,0.1,168.77,168.75,75.83242642]
[1754397214731,0.1,168.77,168.76,0.14216157]
[1754397215100,0.1,168.77,168.76,36.76028493]
[1754397215327,0.1,168.83,168.8,15.24837714]
[1754397215521,0.1,168.83,168.82,10.13812336]
[1754397215720,0.1,168.83,168.82,31.30996928]
[1754397216022,0.1,168.83,168.82,31.78996928]
[1754397216833,0.1,168.83,168.82,57.78996928]
[1754397217635,0.1,168.85,168.84,47.17114425]
[1754397217802,0.1,168.85,168.84,101.30926761]
[1754397218151,0.1,168.85,168.84,57.30926761]
[1754397218305,0.1,168.85,168.84,101.30926761]
[1754397218505,0.1,168.85,168.84,54.13812336]
[1754397218923,0.1,168.85,168.84,75.78926761]
[1754397219229,0.1,168.85,168.84,78.16013061]
[1754397220200,0.1,168.85,168.84,77.68013061]
[1754397220406,0.1,168.85,168.84,54.13812336]
[1754397220654,0.1,168.85,168.84,44.0]
[1754397220934,0.78,168.85,168.84,44.0]
[1754397221436,0.78,168.85,168.78,56.40058716]
[1754397221437,10.91812336,168.85,168.78,56.40058716]
[1754397221604,10.13812336,168.82,168.79,43.98]
[1754397222012,10.81812336,168.82,168.79,43.98]
[1754397222247,10.13812336,168.81,168.79,43.98]
[1754397222448,0.68,168.84,168.79,43.98]
[1754397222745,10.13812336,168.82,168.78,56.40058716]
[1754397222942,0.68,168.81,168.79,43.96]
[1754397223440,10.81812336,168.81,168.79,43.96]
[1754397223641,0.68,168.81,168.79,43.96]
[1754397224021,10.81812336,168.8,168.79,43.96]
[1754397224348,10.13812336,168.82,168.79,43.96]
[1754397224648,0.68,168.84,168.79,43.96]
[1754397224858,10.81812336,168.84,168.79,60.02257928]
[1754397225518,10.81812336,168.83,168.79,43.96]
[1754397225721,10.81812336,168.83,168.79,49.88445654]
[1754397226148,10.81812336,168.83,168.79,43.96]
[1754397226320,10.81812336,168.82,168.79,43.96]
[1754397226524,10.13812336,168.8,168.79,43.96]
[1754397226840,0.68,168.8,168.79,43.94]
[1754397227228,0.68,168.82,168.79,43.94]
[1754397227418,10.81812336,168.81,168.79,43.94]
[1754397227624,0.68,168.8,168.79,43.94]
[1754397227832,10.13812336,168.82,168.79,43.94]
[1754397228525,10.81812336,168.81,168.79,43.94]
[1754397229023,10.13812336,168.82,168.79,43.94]
[1754397229225,158.33812336,168.82,168.79,43.94]
[1754397229455,6.6028526,168.84,168.79,60.00255798]
[1754397229456,10.81812336,168.84,168.79,60.00255798]
[1754397229770,10.81812336,168.83,168.79,49.86451905]
[1754397230052,10.13812336,168.84,168.79,60.48264241]
[1754397230364,0.1,168.85,168.82,10.13812336]
[1754397230558,0.1,168.85,168.83,43.92]
[1754397232065,0.1,168.85,168.83,59.98115976]
[1754397232255,0.1,168.85,168.84,10.61812336]
[1754397232426,0.1,168.85,168.84,25.8665005]
[1754397233256,0.1,168.85,168.84,26.45877721]
[1754397233563,0.1,168.85,168.84,25.3865005]
[1754397233745,0.1,168.85,168.84,25.8665005]
[1754397234255,0.1,168.85,168.84,16.06089047]
[1754397234559,0.1,168.85,168.82,10.13812336]
[1754397234758,0.1,168.85,168.84,43.92]
[1754397235256,0.1,168.85,168.84,54.05812336]
[1754397235439,0.1,168.85,168.84,54.53812336]
[1754397236358,0.1,168.85,168.84,60.46089047]
[1754397236930,0.1,168.85,168.84,75.70926761]
[1754397237848,1e-08,168.85,168.84,75.70926761]
[1754397238541,1e-08,168.85,168.84,85.84739097]
[1754397239353,1e-08,168.85,168.84,75.70926761]
[1754397239859,1e-08,168.85,168.84,85.84739097]
[1754397240162,1e-08,168.87,168.85,15.24837714]
[1754397240359,4.86585304,168.93,168.86,69.85870706]
[1754397240685,4.86585304,168.93,168.92,16.05808547]
[1754397240842,4.86585304,168.93,168.92,59.93808547]
[1754397241574,4.86585304,168.93,168.92,75.66646261]
[1754397241946,4.86585304,168.93,168.92,75.18646261]
[1754397242851,4.86585304,168.93,168.92,75.66646261]
[1754397243046,4.86585304,168.93,168.92,80.53231561]
[1754397243864,1e-08,168.99,168.94,0.14216157]
[1754397244165,1e-08,168.99,168.98,10.13812336]
[1754397244359,1e-08,168.99,168.98,53.99812336]
[1754397244779,1e-08,168.99,168.98,59.91598346]
[1754397245279,0.66000001,168.99,168.98,59.91598346]
[1754397245575,1e-08,168.99,168.98,59.91598346]
[1754397245872,1e-08,168.99,168.98,53.99812336]
[1754397246081,1e-08,168.99,168.98,43.86]
[1754397246248,0.66000001,168.99,168.98,43.86]
[1754397246448,1e-08,168.99,168.98,59.91598346]
[1754397246970,0.66000001,168.99,168.98,59.91598346]
[1754397247187,0.66000001,168.99,168.98,53.99812336]
[1754397247361,0.66000001,168.99,168.98,53.97812336]
[1754397247567,0.66000001,168.99,168.94,0.14216157]
[1754397247751,0.66000001,168.99,168.95,53.97812336]
[1754397247952,0.66,168.98,168.96,10.13812336]
[1754397248259,1e-08,168.99,168.97,53.97812336]
[1754397248463,0.66,168.98,168.97,43.84]
[1754397249657,10.79812336,168.98,168.94,5.91915942]
[1754397249977,0.66,168.97,168.95,43.82]
[1754397250474,0.66,168.96,168.95,43.82]
[1754397250664,0.66,168.96,168.84,10.13812336]
[1754397250665,5.91891092,168.95,168.87,5.98147933]
[1754397250855,10.13812336,168.92,168.88,43.82]
[1754397251061,0.66,168.91,168.88,43.82]
[1754397251555,0.66,168.94,168.9,10.13812336]
[1754397251757,1e-08,168.99,168.93,10.13812336]
[1754397251973,0.66000001,168.99,168.96,10.13812336]
[1754397252170,0.66000001,168.99,168.97,43.82]
[1754397252661,16.71611517,168.98,168.97,43.82]
[1754397252861,20.96781116,168.98,168.95,43.82]
[1754397253066,10.13812336,168.96,168.95,43.82]
[1754397253275,0.66,168.96,168.95,43.82]
[1754397253462,10.79812336,168.98,168.95,43.82]
[1754397253864,10.79812336,168.97,168.95,43.82]
[1754397254073,10.79812336,168.96,168.95,43.82]
[1754397254388,15.05527269,168.96,168.95,43.82]
[1754397254682,10.79812336,168.96,168.95,43.82]
[1754397254984,10.8356309,168.96,168.95,43.82]
[1754397255177,20.97375426,168.96,168.95,43.82]
[1754397256780,20.97375426,168.96,168.93,43.8]
[1754397257087,10.13812336,168.94,168.93,43.8]
[1754397257287,15.05519366,168.94,168.93,43.8]
[1754397257868,20.47445493,168.94,168.93,43.8]
[1754397258089,20.47445493,168.94,168.87,5.9815892]
[1754397258090,35.27260812,168.94,168.87,0.06]
[1754397258274,153.1170703,168.93,168.89,43.8]
[1754397258476,10.13812336,168.9,168.89,43.8]
[1754397258676,10.13812336,168.9,168.87,0.06]
[1754397258677,14.39519366,168.9,168.87,0.06]
[1754397258864,10.13812336,168.88,168.87,0.06]
[1754397259064,14.39519366,168.88,168.87,0.06]
[1754397259281,15.05519366,168.88,168.87,0.06]
[1754397259999,20.97655794,168.88,168.87,0.06]
[1754397262394,20.97655794,168.88,168.85,0.06]
[1754397262693,10.13812336,168.86,168.85,0.06]
[1754397262867,14.39519366,168.86,168.85,0.06]
[1754397263267,10.13812336,168.86,168.85,0.06]
[1754397263470,10.13812336,168.86,168.85,44.56]
[1754397263668,10.79812336,168.86,168.85,43.86]
[1754397264178,16.72018897,168.86,168.85,43.86]
[1754397264384,10.79812336,168.86,168.85,43.86]
[1754397264567,10.13812336,168.86,168.85,43.86]
[1754397265872,6.5814578,168.88,168.85,43.86]
[1754397266065,10.13812336,168.86,168.85,43.86]
[1754397266288,16.06018897,168.86,168.85,43.86]
[1754397266773,20.97788258,168.86,168.85,0.06]
[1754397266977,16.72018897,168.86,168.85,0.06]
[1754397269079,16.06018897,168.86,168.85,0.06]
[1754397269698,16.74018897,168.86,168.85,0.06]
[1754397269992,20.99828394,168.86,168.85,0.06]
[1754397270494,20.99828394,168.86,168.83,0.06]
[1754397270495,50.65427569,168.86,168.83,0.06]
[1754397270671,50.65427569,168.86,168.77,42.7]
[1754397270672,148.14,168.82,168.78,43.78]
[1754397270872,10.13812336,168.79,168.78,43.78]
[1754397271072,10.13812336,168.79,168.78,44.44]
[1754397271268,10.13812336,168.79,168.78,43.78]
[1754397271493,10.81812336,168.79,168.73,0.66]
[1754397271700,10.13812336,168.76,168.74,43.78]
[1754397271996,10.13812336,168.75,168.74,43.78]
[1754397272483,148.14,168.78,168.74,43.78]
[1754397272688,10.13812336,168.75,168.74,43.78]
[1754397273473,10.13812336,168.77,168.74,44.44]
[1754397273695,10.13812336,168.77,168.75,0.66]
[1754397274090,10.81812336,168.76,168.68,0.2]
[1754397274275,29.6182543,168.82,168.68,0.2]
[1754397274276,10.13812336,168.7,168.68,0.86]
[1754397274476,10.13812336,168.7,168.69,97.12370162]
[1754397275078,10.13812336,168.71,168.69,103.05153945]
[1754397275276,154.74601794,168.75,168.7,0.66]
[1754397275505,10.13812336,168.71,168.69,96.46370162]
[1754397275712,10.13812336,168.72,168.69,102.39173529]
[1754397275909,10.13812336,168.72,168.7,0.66]
[1754397277225,10.13812336,168.71,168.69,96.46370162]
[1754397277393,10.13812336,168.7,168.69,96.46370162]
[1754397277576,0.68,168.71,168.69,96.46370162]
[1754397277577,10.13812336,168.71,168.69,96.46370162]
[1754397279209,10.13812336,168.7,168.69,96.46370162]
[1754397279391,10.13812336,168.71,168.69,52.68370162]
[1754397279704,10.13812336,168.71,168.7,43.78]
[1754397280886,154.74636307,168.74,168.7,43.78]
[1754397281099,10.13812336,168.71,168.7,43.78]
[1754397281496,10.81812336,168.71,168.7,43.78]
[1754397282040,10.13812336,168.71,168.7,43.78]
[1754397284425,5.92723277,168.72,168.7,43.78]
[1754397284718,10.13812336,168.71,168.7,43.78]
[1754397285804,10.13812336,168.71,168.7,44.44]
[1754397286028,154.06636922,168.74,168.7,44.44]
[1754397286336,10.13812336,168.73,168.7,43.78]
[1754397286500,10.13812336,168.73,168.71,0.66]
[1754397286820,10.13812336,168.73,168.72,43.76]
[1754397287732,16.0647517,168.73,168.72,43.76]
[1754397287946,148.14,168.72,168.69,52.68370162]
[1754397288250,10.13812336,168.7,168.68,0.2]
[1754397288400,10.13812336,168.69,168.68,0.2]
[1754397288598,10.81812336,168.69,168.68,0.2]
[1754397289010,80.57812336,168.69,168.59,0.66]
[1754397289245,0.68,168.68,168.6,44.42]
[1754397289405,10.13812336,168.65,168.61,0.66]
[1754397289630,10.13812336,168.65,168.62,0.66]
[1754397289823,10.13812336,168.64,168.63,43.76]
[1754397291053,10.13812336,168.65,168.63,44.42]
[1754397291352,10.13812336,168.65,168.63,43.76]
[1754397292522,10.13812336,168.64,168.63,43.76]
[1754397293725,5.92840147,168.68,168.63,44.42]
[1754397294029,10.13812336,168.65,168.63,43.76]
[1754397294751,6.60733092,168.71,168.64,0.66]
[1754397294923,10.13812336,168.7,168.65,10.13812336]
[1754397295122,10.13812336,168.69,168.66,44.42]
[1754397295348,10.13812336,168.69,168.66,43.76]
[1754397295551,10.13812336,168.68,168.66,43.76]
[1754397296048,10.13812336,168.69,168.66,44.42]
[1754397296624,10.13812336,168.7,168.66,50.34902411]
[1754397296834,10.13812336,168.7,168.67,0.66]
[1754397297353,10.13812336,168.71,168.68,0.66]
[1754397297552,10.13812336,168.71,168.69,43.76]
[1754397298530,10.13812336,168.7,168.69,43.76]
[1754397299165,10.79812336,168.7,168.62,0.66]
[1754397299355,10.13812336,168.67,168.62,10.13812336]
[1754397299553,10.13812336,168.66,168.63,43.74]
[1754397299760,10.13812336,168.65,168.63,43.74]
[1754397299924,10.13812336,168.64,168.63,43.74]
[1754397300128,16.72791463,168.64,168.63,43.74]
[1754397300328,10.13812336,168.64,168.63,43.74]
[1754397300625,0.66,168.72,168.63,60.4681526]
[1754397300853,10.13812336,168.72,168.64,0.66]
[1754397301044,10.13812336,168.71,168.64,0.66]
[1754397301245,0.66,168.73,168.65,10.13812336]
[1754397301422,0.66,168.71,168.66,43.74]
[1754397301625,0.66,168.71,168.65,43.74]
[1754397301626,10.13812336,168.67,168.65,43.74]
[1754397301847,10.13812336,168.66,168.65,43.74]
[1754397302147,10.13812336,168.68,168.65,43.74]
[1754397302664,10.13812336,168.66,168.65,43.74]
[1754397302952,10.13812336,168.66,168.62,43.74]
[1754397302953,10.79812336,168.66,168.62,43.74]
[1754397303151,10.13812336,168.63,168.62,43.74]
[1754397303340,10.79812336,168.63,168.62,43.74]
[1754397303654,10.13812336,168.63,168.61,0.06]
[1754397303964,10.13812336,168.62,168.61,0.06]
[1754397304331,16.06861796,168.62,168.61,0.06]
[1754397304645,16.72861796,168.62,168.61,0.06]
[1754397305360,10.13812336,168.62,168.61,0.06]
[1754397305539,10.13812336,168.63,168.61,0.06]
[1754397305740,10.13812336,168.66,168.61,10.85812336]
[1754397306148,10.13812336,168.66,168.62,0.66]
[1754397306337,10.13812336,168.66,168.63,43.74]
[1754397306537,10.13812336,168.66,168.63,44.4]
[1754397306753,16.06687537,168.67,168.63,44.4]
[1754397306950,10.13812336,168.66,168.63,43.74]
[1754397307352,10.13812336,168.66,168.63,44.4]
[1754397308289,10.13812336,168.66,168.63,43.74]
[1754397308462,10.13812336,168.66,168.63,44.4]
[1754397309443,10.13812336,168.66,168.63,43.74]
[1754397309648,10.13812336,168.66,168.63,44.4]
[1754397309953,10.13812336,168.66,168.63,50.33006944]
[1754397310161,158.27812336,168.67,168.64,0.66]
[1754397310359,148.14,168.67,168.64,6.58973796]
[1754397311060,158.27812336,168.67,168.63,43.74]
[1754397311244,10.13812336,168.64,168.63,43.74]
[1754397311684,10.79812336,168.64,168.63,43.74]
[1754397312363,20.9871809,168.64,168.61,0.06]
[1754397312666,10.13812336,168.62,168.61,0.06]
[1754397312889,10.13812336,168.62,168.59,0.06]
[1754397312890,14.39738963,168.62,168.59,0.06]
[1754397313163,14.39738963,168.62,168.47,0.2]
[1754397313164,10.13812336,168.54,168.47,0.2]
[1754397313372,10.13812336,168.49,168.48,43.72]
[1754397315140,0.66,168.51,168.48,43.72]
[1754397315342,10.13812336,168.49,168.48,43.72]
[1754397316869,10.13812336,168.53,168.48,60.45351016]
[1754397317076,10.13812336,168.55,168.5,10.13812336]
[1754397317255,10.13812336,168.54,168.49,10.13812336]
[1754397317456,10.13812336,168.55,168.51,0.66]
[1754397317653,0.66,168.6,168.53,10.13812336]
[1754397317860,10.13812336,168.58,168.53,10.13812336]
[1754397318057,10.13812336,168.58,168.54,0.66]
[1754397318968,6.59144279,168.6,168.54,0.66]
[1754397318969,10.13812336,168.59,168.55,0.66]
[1754397319164,10.13812336,168.59,168.56,43.72]
[1754397319478,14.82397195,168.65,168.5,0.66]
[1754397319479,4.91149268,168.58,168.5,0.66]
[1754397319650,10.13812336,168.53,168.51,43.72]
[1754397319845,10.13812336,168.54,168.51,43.72]
[1754397320049,10.13812336,168.57,168.52,10.79812336]
[1754397320282,10.13812336,168.59,168.53,10.79812336]
[1754397320453,10.13812336,168.6,168.55,5.93295757]
[1754397320646,0.66,168.62,168.56,54.51812336]
[1754397320851,10.13812336,168.61,168.56,54.51812336]
[1754397321072,10.13812336,168.62,168.57,10.79812336]
[1754397321395,10.13812336,168.61,168.57,0.66]
[1754397321675,10.13812336,168.58,168.56,43.72]
[1754397322061,0.66,168.6,168.56,43.72]
[1754397322260,10.13812336,168.58,168.56,43.72]
[1754397322469,10.13812336,168.57,168.56,43.72]
[1754397323171,6.59124388,168.6,168.56,43.72]
[1754397323350,10.13812336,168.61,168.56,60.4507215]
[1754397323553,0.66,168.63,168.57,10.79812336]
[1754397323752,10.13812336,168.62,168.57,10.79812336]
[1754397323986,10.13812336,168.62,168.57,10.13812336]
[1754397324166,10.13812336,168.62,168.58,0.66]
[1754397324488,10.13812336,168.66,168.61,16.06878608]
[1754397324787,10.13812336,168.66,168.62,43.72]
[1754397324970,10.13812336,168.65,168.62,43.72]
[1754397325156,10.13812336,168.63,168.62,43.72]
[1754397325352,10.79812336,168.63,168.57,5.93201317]
[1754397325593,0.66,168.63,168.6,43.72]
[1754397325759,10.13812336,168.62,168.6,43.72]
[1754397327395,10.13812336,168.61,168.6,43.72]
[1754397328789,10.13812336,168.61,168.55,16.73075006]
[1754397328790,16.72896969,168.61,168.55,16.73075006]
[1754397328960,10.13812336,168.59,168.56,43.72]
[1754397329161,10.13812336,168.58,168.56,43.72]
[1754397329384,10.13812336,168.57,168.56,43.72]
[1754397329784,6.59084633,168.61,168.56,43.72]
[1754397329785,148.2,168.6,168.56,43.72]
[1754397329988,148.2,168.6,168.57,10.85812336]
[1754397330177,148.2,168.6,168.58,0.72]
[1754397330380,10.13812336,168.64,168.59,10.85812336]
[1754397330570,10.13812336,168.64,168.6,44.42]
[1754397330966,10.13812336,168.64,168.6,49.63116965]
[1754397331197,10.13812336,168.65,168.6,53.83812336]
[1754397331496,10.13812336,168.64,168.6,49.63116365]
[1754397331692,10.13812336,168.64,168.6,50.35116365]
[1754397332002,10.13812336,168.65,168.61,0.72]
[1754397332172,10.13812336,168.66,168.62,0.72]
[1754397332562,10.13812336,168.65,168.62,0.72]
[1754397333168,10.13812336,168.65,168.61,5.93074977]
[1754397333494,10.13812336,168.65,168.61,6.65074977]
[1754397333694,10.13812336,168.66,168.61,16.06887313]
[1754397333860,10.13812336,168.68,168.62,10.85812336]
[1754397334267,10.13812336,168.68,168.63,10.13812336]
[1754397334467,10.13812336,168.68,168.64,43.7]
[1754397334688,10.13812336,168.67,168.64,43.7]
[1754397334888,10.85812336,168.67,168.64,43.7]
[1754397335076,10.13812336,168.66,168.64,43.7]
[1754397335595,10.85812336,168.65,168.64,43.7]
[1754397335894,0.03,168.64,168.63,43.7]
[1754397336276,0.03,168.64,168.59,6.65127495]
[1754397336477,0.03,168.64,168.63,10.13812336]
[1754397336687,0.03,168.64,168.63,10.28028493]
[1754397336887,0.03,168.64,168.63,10.85812336]
[1754397337085,0.03,168.64,168.63,16.78826627]
[1754397337276,0.03,168.64,168.63,60.61042784]
[1754397337481,0.03,168.64,168.63,76.3096577]
[1754397337688,0.03,168.66,168.65,41.10621557]
[1754397337880,0.03,168.66,168.64,0.72]
[1754397338079,0.03,168.66,168.65,43.68]
[1754397338982,0.03,168.66,168.64,0.72]
[1754397339198,10.16812336,168.66,168.65,43.68]
[1754397339602,10.88812336,168.66,168.65,43.68]
[1754397339783,148.2,168.65,168.61,43.68]
[1754397340098,10.13812336,168.62,168.57,0.06]
[1754397340309,10.13812336,168.58,168.57,0.06]
[1754397340982,5.9311981,168.6,168.57,0.06]
[1754397341181,10.13812336,168.58,168.57,0.06]
[1754397341592,10.85812336,168.58,168.57,0.06]
[1754397343080,16.79002512,168.58,168.57,0.06]
[1754397344172,35.88715698,168.58,168.52,43.68]
[1754397344391,10.13812336,168.53,168.52,43.68]
[1754397344701,10.85812336,168.53,168.52,43.68]
[1754397345201,16.79178502,168.53,168.52,43.68]
[1754397345575,26.0,168.57,168.52,43.68]
[1754397345775,10.13812336,168.53,168.52,43.68]
[1754397346188,10.13812336,168.54,168.52,44.4]
[1754397346498,10.13812336,168.56,168.53,0.72]
[1754397346703,5.93154991,168.59,168.53,0.72]
[1754397346995,10.13812336,168.55,168.53,0.72]
[1754397347303,10.13812336,168.54,168.52,49.6140124]
[1754397347805,10.13812336,168.55,168.52,50.3340124]
[1754397348273,10.13812336,168.54,168.52,43.68]